fUST/lending_fUST_20250214
["ID","MTS","AMOUNT","RATE_DAILY","PERIOD"]
[353085783,1739547042137,-1779.8,0.0001378,2]
[353085785,1739547042146,-520.935007,0.0001378,2]
[353085787,1739547042156,-500.0,0.0001378,2]
[353085789,1739547042165,-509.88968745,0.0001378,2]
[353085791,1739547042175,-768.46,0.0001378,2]
[353085793,1739547042184,-37951.69,0.0001378,2]
[353085795,1739547042193,-500.0,0.0001378,2]
[353085797,1739547042202,-4593.17,0.0001378,2]
[353085799,1739547042212,-500.0,0.0001378,2]
[353085801,1739547042221,-16492.05,0.0001378,2]
[353085803,1739547042231,-1175.16,0.0001378,2]
[353085805,1739547042241,-605.72072481,0.0001378,2]
[353085807,1739547042250,-1897.12,0.0001378,2]
[353085809,1739547042260,-295.35954258,0.0001378,2]
[353085811,1739547042272,-1913.66,0.0001378,2]
[353085813,1739547042281,-1227.12,0.0001378,2]
[353085815,1739547042291,-1733.52,0.0001378,2]
[353085817,1739547042300,-500.0,0.0001378,2]
[353085819,1739547042310,-500.0,0.0001378,2]
[353085821,1739547042320,-500.0,0.0001378,2]
[353085823,1739547042329,-500.0,0.0001378,2]
[353085825,1739547042339,-500.0,0.0001378,2]
[353085827,1739547042348,-500.0,0.0001378,2]
[353085829,1739547042357,-417.86907342,0.0001378,2]
[353085831,1739547042367,-500.0,0.0001378,2]
[353085833,1739547042376,-500.0,0.0001378,2]
[353085835,1739547042386,-469.30851755,0.0001378,2]
[353085837,1739547042396,-610.48,0.0001378,2]
[353085839,1739547042406,-500.0,0.0001378,2]
[353085841,1739547042415,-500.0,0.0001378,2]
[353085843,1739547042424,-500.0,0.0001378,2]
[353085845,1739547042433,-571.85,0.0001378,2]
[353085847,1739547042443,-500.0,0.0001378,2]
[353085848,1739547042453,-1434.15,0.0001378,2]
[353085850,1739547042462,-500.0,0.0001378,2]
[353085852,1739547042472,-689.22,0.0001378,2]
[353085854,1739547042481,-3407.35,0.0001378,2]
[353085856,1739547042491,-3182.03,0.0001378,2]
[353085858,1739547042500,-603.68,0.0001378,2]
[353085860,1739547042510,-580.63,0.0001378,2]
[353085862,1739547042519,-500.0,0.0001378,2]
[353085864,1739547042529,-1683.47,0.0001378,2]
[353085866,1739547042538,-7334.04,0.0001378,2]
[353085868,1739547042547,-500.0,0.0001378,2]
[353085870,1739547042557,-1636.56,0.0001378,2]
[353085872,1739547042567,-500.0,0.0001378,2]
[353085874,1739547042577,-631.4613042,0.0001378,2]
[353085876,1739547042586,-3337.46,0.0001378,2]
[353085878,1739547042596,-500.0,0.0001378,2]
[353085880,1739547042605,-500.0,0.0001378,2]
[353085882,1739547042615,-602.8,0.0001378,2]
[353085884,1739547042625,-3964.67,0.0001378,2]
[353085886,1739547042642,-507.42600864,0.0001378,2]
[353085888,1739547042652,-810.1,0.0001378,2]
[353085890,1739547042661,-500.0,0.0001378,2]
[353085892,1739547042671,-500.0,0.0001378,2]
[353085894,1739547042681,-2681.18,0.0001378,2]
[353085896,1739547042691,-500.0,0.0001378,2]
[353085898,1739547042700,-749.55,0.0001378,2]
[353085900,1739547042710,-207.27451284,0.00013799,2]
[353085902,1739547042720,-500.0,0.00013799,2]
[353085904,1739547042729,-178.53880079,0.00013799,2]
[353085906,1739547042739,-500.0,0.00013799,2]
[353085908,1739547042748,-500.0,0.00013799,2]
[353085910,1739547042757,-788.1975381,0.000138,2]
[353085912,1739547042767,-153.0,0.000138,2]
[353085914,1739547042776,-154.666516,0.000138,2]
[353085916,1739547042786,-431.7599296,0.000138,2]
[353085918,1739547042795,-154.7299507,0.000138,2]
[353085920,1739547042804,-154.666516,0.000138,2]
[353085922,1739547042813,-1014012.35659866,0.000138,2]
[353085924,1739547042824,-153.0,0.000138,2]
[353085926,1739547042834,-154.666516,0.000138,2]
[353085928,1739547042843,-154.5354464,0.000138,2]
[353085930,1739547042852,-500.0,0.00013863,2]
[353085932,1739547042862,-641.92,0.00013863,2]
[353085934,1739547042874,-500.0,0.00013863,2]
[353085936,1739547042885,-500.0,0.00013863,2]
[353085938,1739547042894,-666.01,0.00013863,2]
[353085939,1739547042903,-500.0,0.00013863,2]
[353085940,1739547042913,-500.0,0.00013863,2]
[353085941,1739547042922,-500.0,0.00013863,2]
[353085942,1739547042932,-860.7,0.00013863,2]
[353085943,1739547042941,-500.0,0.00013863,2]
[353085944,1739547042951,-1374.05,0.00013863,2]
[353085945,1739547042961,-1662.72,0.00013863,2]
[353085946,1739547042970,-500.0,0.00013863,2]
[353085947,1739547042980,-534.28,0.00013863,2]
[353085948,1739547042989,-1150.26,0.00013863,2]
[353085949,1739547042999,-500.0,0.00013863,2]
[353085950,1739547043008,-508.44434658,0.00013863,2]
[353085951,1739547043017,-1488.22,0.00013863,2]
[353085952,1739547043026,-535.17,0.00013863,2]
[353085953,1739547043035,-566.89,0.00013863,2]
[353085954,1739547043045,-500.0,0.00013863,2]
[353085955,1739547043056,-500.0,0.00013863,2]
[353085956,1739547043066,-500.0,0.00013863,2]
[353085957,1739547043075,-500.0,0.00013863,2]
[353085958,1739547043084,-1110.03,0.00013863,2]
[353085959,1739547043094,-582.36,0.00013863,2]
[353085960,1739547043104,-320.63034166,0.00013863,2]
[353085962,1739547043113,-1271.34,0.00013863,2]
[353085964,1739547043123,-500.0,0.00013863,2]
[353085966,1739547043132,-1289.18,0.00013863,2]
[353085968,1739547043142,-515.09,0.00013863,2]
[353085970,1739547043152,-3441.1,0.00013863,2]
[353085972,1739547043161,-500.0,0.00013863,2]
[353085974,1739547043170,-500.0,0.00013863,2]
[353085975,1739547043180,-6725.15,0.00013863,2]
[353085977,1739547043191,-571.08,0.00013863,2]
[353085980,1739547043200,-11760.87,0.00013863,2]
[353085981,1739547043210,-461.5685709,0.00013863,2]
[353085983,1739547043219,-500.0,0.00013863,2]
[353085985,1739547043230,-1123.46,0.00013863,2]
[353085987,1739547043254,-500.0,0.00013863,2]
[353085989,1739547043264,-639.53,0.00013863,2]
[353085991,1739547043274,-2123.39,0.00013863,2]
[353085993,1739547043283,-500.0,0.00013863,2]
[353085995,1739547043293,-3364.48,0.00013863,2]
[353085998,1739547043303,-1029.82,0.00013863,2]
[353086000,1739547043313,-1132.28,0.00013863,2]
[353086001,1739547043322,-1533.97,0.00013863,2]
[353086003,1739547043332,-1779.8,0.00013863,2]
[353086006,1739547043342,-768.46,0.00013863,2]
[353086009,1739547043352,-37951.69,0.00013863,2]
[353086011,1739547043363,-500.0,0.00013863,2]
[353086014,1739547043373,-4593.17,0.00013863,2]
[353086016,1739547043383,-500.0,0.00013863,2]
[353086017,1739547043392,-16492.05,0.00013863,2]
[353086019,1739547043401,-1175.16,0.00013863,2]
[353086021,1739547043411,-1897.12,0.00013863,2]
[353086023,1739547043420,-1913.66,0.00013863,2]
[353086025,1739547043430,-1227.12,0.00013863,2]
[353086027,1739547043440,-1733.52,0.00013863,2]
[353086029,1739547043450,-500.0,0.00013863,2]
[353086031,1739547043460,-500.0,0.00013863,2]
[353086035,1739547043469,-500.0,0.00013863,2]
[353086038,1739547043480,-500.0,0.00013863,2]
[353086041,1739547043489,-500.0,0.00013863,2]
[353086044,1739547043499,-500.0,0.00013863,2]
[353086047,1739547043508,-610.48,0.00013863,2]
[353086050,1739547043517,-648.27609817,0.00013863,2]
[353086053,1739547043527,-500.0,0.00013863,2]
[353086057,1739547043536,-500.0,0.00013863,2]
[353086061,1739547043546,-571.85,0.00013863,2]
[353086065,1739547043555,-500.0,0.00013863,2]
[353086068,1739547043565,-1434.15,0.00013863,2]
[353086071,1739547043575,-500.0,0.00013863,2]
[353086073,1739547043583,-689.22,0.00013863,2]
[353086075,1739547043593,-3407.35,0.00013863,2]
[353086077,1739547043602,-3182.03,0.00013863,2]
[353086079,1739547043612,-603.68,0.00013863,2]
[353086081,1739547043622,-580.63,0.00013863,2]
[353086083,1739547043632,-500.0,0.00013863,2]
[353086085,1739547043641,-1683.47,0.00013863,2]
[353086087,1739547043651,-7334.04,0.00013863,2]
[353086089,1739547043661,-508.2616777,0.00013863,2]
[353086091,1739547043670,-1636.56,0.00013863,2]
[353086093,1739547043679,-500.0,0.00013863,2]
[353086095,1739547043689,-3337.46,0.00013863,2]
[353086097,1739547043698,-610.79751319,0.00013863,2]
[353086099,1739547043707,-500.0,0.00013863,2]
[353086101,1739547043716,-602.8,0.00013863,2]
[353086103,1739547043726,-3964.67,0.00013863,2]
[353086104,1739547043741,-810.1,0.00013863,2]
[353086106,1739547043751,-500.0,0.00013863,2]
[353086108,1739547043761,-500.0,0.00013863,2]
[353086110,1739547043771,-2681.18,0.00013863,2]
[353086112,1739547043780,-500.0,0.00013863,2]
[353086114,1739547043790,-749.55,0.00013863,2]
[353086116,1739547043799,-362.0499117,0.0001389,2]
[353086118,1739547043810,-154.666516,0.0001389,2]
[353086120,1739547043820,-153.0,0.0001389,2]
[353086122,1739547043829,-215.9231093,0.0001389,2]
[353086124,1739547043839,-306.0,0.0001389,2]
[353086126,1739547043848,-13269.26255483,0.00013906,2]
[353086128,1739547043857,-153.0,0.00013907,2]
[353086130,1739547043866,-153.0,0.00013907,2]
[353086132,1739547043878,-153.0,0.00013907,2]
[353086134,1739547043887,-153.0,0.00013907,2]
[353086136,1739547043896,-1933.8558936,0.00013937,2]
[353086138,1739547043906,-160.0,0.00013944,2]
[353086140,1739547043917,-641.92,0.00013945,2]
[353086142,1739547043926,-500.0,0.00013945,2]
[353086144,1739547043936,-500.0,0.00013945,2]
[353086146,1739547043946,-666.01,0.00013945,2]
[353086148,1739547043958,-860.7,0.00013945,2]
[353086149,1739547043968,-500.0,0.00013945,2]
[353086151,1739547043980,-1374.05,0.00013945,2]
[353086153,1739547043991,-1662.72,0.00013945,2]
[353086155,1739547044000,-500.0,0.00013945,2]
[353086157,1739547044010,-534.28,0.00013945,2]
[353086159,1739547044019,-1150.26,0.00013945,2]
[353086161,1739547044029,-500.0,0.00013945,2]
[353086163,1739547044039,-1488.22,0.00013945,2]
[353086165,1739547044048,-535.17,0.00013945,2]
[353086167,1739547044058,-566.89,0.00013945,2]
[353086169,1739547044067,-500.0,0.00013945,2]
[353086171,1739547044078,-500.0,0.00013945,2]
[353086173,1739547044087,-500.0,0.00013945,2]
[353086175,1739547044097,-500.0,0.00013945,2]
[353086177,1739547044107,-1110.03,0.00013945,2]
[353086179,1739547044117,-582.36,0.00013945,2]
[353086181,1739547044129,-1271.34,0.00013945,2]
[353086183,1739547044141,-515.09,0.00013945,2]
[353086185,1739547044151,-1289.18,0.00013945,2]
[353086187,1739547044160,-3441.1,0.00013945,2]
[353086189,1739547044169,-500.0,0.00013945,2]
[353086191,1739547044179,-500.0,0.00013945,2]
[353086193,1739547044188,-6725.15,0.00013945,2]
[353086195,1739547044198,-571.08,0.00013945,2]
[353086197,1739547044208,-11760.87,0.00013945,2]
[353086199,1739547044217,-500.0,0.00013945,2]
[353086201,1739547044229,-1123.46,0.00013945,2]
[353086203,1739547044239,-500.0,0.00013945,2]
[353086205,1739547044248,-639.53,0.00013945,2]
[353086207,1739547044258,-2123.39,0.00013945,2]
[353086209,1739547044267,-500.0,0.00013945,2]
[353086211,1739547044276,-3364.48,0.00013945,2]
[353086212,1739547044286,-1029.82,0.00013945,2]
[353086214,1739547044295,-1132.28,0.00013945,2]
[353086216,1739547044305,-1533.97,0.00013945,2]
[353086218,1739547044314,-1779.8,0.00013945,2]
[353086220,1739547044324,-768.46,0.00013945,2]
[353086222,1739547044334,-37951.69,0.00013945,2]
[353086224,1739547044343,-500.0,0.00013945,2]
[353086226,1739547044353,-4593.17,0.00013945,2]
[353086228,1739547044362,-500.0,0.00013945,2]
[353086230,1739547044371,-16492.05,0.00013945,2]
[353086232,1739547044381,-1175.16,0.00013945,2]
[353086234,1739547044390,-1897.12,0.00013945,2]
[353086236,1739547044399,-1913.66,0.00013945,2]
[353086238,1739547044409,-1227.12,0.00013945,2]
[353086240,1739547044418,-1733.52,0.00013945,2]
[353086242,1739547044427,-500.0,0.00013945,2]
[353086244,1739547044437,-500.0,0.00013945,2]
[353086246,1739547044446,-500.0,0.00013945,2]
[353086248,1739547044456,-339.74544473,0.00013945,2]
[353086250,1739547044465,-500.0,0.00013945,2]
[353086252,1739547044475,-564.44049603,0.00013945,2]
[353086254,1739547044488,-610.48,0.00013945,2]
[353086256,1739547044497,-500.0,0.00013945,2]
[353086258,1739547044507,-500.0,0.00013945,2]
[353086260,1739547044517,-571.85,0.00013945,2]
[353086262,1739547044526,-500.0,0.00013945,2]
[353086264,1739547044535,-786.79613336,0.00013945,2]
[353086267,1739547044551,-647.35386664,0.00013945,2]
[353086268,1739547044561,-500.0,0.00013945,2]
[353086271,1739547044571,-689.22,0.00013945,2]
[353086272,1739547044581,-886.21504436,0.00013945,2]
[353086275,1739547044592,-2521.13495564,0.00013945,2]
[353086277,1739547044602,-3182.03,0.00013945,2]
[353086279,1739547044612,-603.68,0.00013945,2]
[353086281,1739547044622,-580.63,0.00013945,2]
[353086283,1739547044631,-500.0,0.00013945,2]
[353086285,1739547044641,-1683.47,0.00013945,2]
[353086287,1739547044650,-7334.04,0.00013945,2]
[353086288,1739547044659,-1636.56,0.00013945,2]
[353086290,1739547044668,-500.0,0.00013945,2]
[353086292,1739547044678,-3337.46,0.00013945,2]
[353086294,1739547044687,-500.0,0.00013945,2]
[353086296,1739547044696,-602.8,0.00013945,2]
[353086298,1739547044706,-3964.67,0.00013945,2]
[353086300,1739547044715,-810.1,0.00013945,2]
[353086302,1739547044724,-500.0,0.00013945,2]
[353086304,1739547044736,-509.99700805,0.00013945,2]
[353086306,1739547044746,-2681.18,0.00013945,2]
[353086309,1739547044755,-500.0,0.00013945,2]
[353086310,1739547044765,-749.55,0.00013945,2]
[353086312,1739547044774,-150.532,0.00013953,2]
[353086314,1739547044783,-1970.0,0.00013953,2]
[353086329,1739547044908,-538.0,0.00013953,2]
[353086331,1739547044939,-2292.0,0.00013953,2]
[353086333,1739547044951,-669.607,0.00013979,2]
[353086335,1739547044961,-10067.83113475,0.00013985,2]
[353086337,1739547044970,-151.0,0.00014,2]
[353086339,1739547044984,-151.0,0.00014,2]
[353086341,1739547044993,-160.0,0.00014026,2]
[353086343,1739547045003,-641.92,0.00014027,2]
[353086345,1739547045012,-500.0,0.00014027,2]
[353086347,1739547045022,-500.0,0.00014027,2]
[353086349,1739547045031,-666.01,0.00014027,2]
[353086351,1739547045042,-860.7,0.00014027,2]
[353086353,1739547045051,-500.0,0.00014027,2]
[353086355,1739547045060,-1374.05,0.00014027,2]
[353086357,1739547045070,-1662.72,0.00014027,2]
[353086359,1739547045080,-500.0,0.00014027,2]
[353086361,1739547045089,-534.28,0.00014027,2]
[353086362,1739547045099,-1150.26,0.00014027,2]
[353086364,1739547045108,-500.0,0.00014027,2]
[353086366,1739547045118,-1488.22,0.00014027,2]
[353086368,1739547045127,-535.17,0.00014027,2]
[353086370,1739547045137,-566.89,0.00014027,2]
[353086372,1739547045146,-500.0,0.00014027,2]
[353086374,1739547045155,-500.0,0.00014027,2]
[353086376,1739547045165,-500.0,0.00014027,2]
[353086378,1739547045174,-500.0,0.00014027,2]
[353086380,1739547045184,-1110.03,0.00014027,2]
[353086382,1739547045193,-582.36,0.00014027,2]
[353086384,1739547045203,-1271.34,0.00014027,2]
[353086386,1739547045212,-1289.18,0.00014027,2]
[353086388,1739547045222,-515.09,0.00014027,2]
[353086390,1739547045235,-3441.1,0.00014027,2]
[353086392,1739547045245,-603.67271731,0.00014027,2]
[353086394,1739547045255,-6725.15,0.00014027,2]
[353086396,1739547045264,-571.08,0.00014027,2]
[353086398,1739547045274,-3757.36836157,0.00014027,2]
[353086427,1739547045512,-1189.4,0.00013698,2]
[353086429,1739547045522,-500.0,0.00014027,2]
[353086431,1739547045532,-616.82,0.00014027,2]
[353086432,1739547045554,-485.33,0.0001378,2]
[353086460,1739547045854,-704.07,0.0001378,2]
[353086462,1739547045863,-1189.4,0.00013863,2]
[353086464,1739547045873,-1189.4,0.00013945,2]
[353086467,1739547045886,-506.64,0.00014027,2]
[353086469,1739547045895,-639.53,0.00014027,2]
[353086471,1739547045904,-2123.39,0.00014027,2]
[353086473,1739547045914,-3364.48,0.00014027,2]
[353086475,1739547045925,-1029.82,0.00014027,2]
[353086477,1739547045935,-1132.28,0.00014027,2]
[353086479,1739547045944,-833.98999252,0.00014027,2]
[353086481,1739547045960,-699.98000748,0.00014027,2]
[353086483,1739547045970,-1779.8,0.00014027,2]
[353086485,1739547045979,-768.46,0.00014027,2]
[353086487,1739547045989,-37951.69,0.00014027,2]
[353086489,1739547045998,-500.0,0.00014027,2]
[353086491,1739547046007,-4593.17,0.00014027,2]
[353086493,1739547046016,-500.0,0.00014027,2]
[353086495,1739547046025,-16492.05,0.00014027,2]
[353086497,1739547046034,-1023.65666558,0.00014027,2]
[353086513,1739547046177,-500.0,0.00013698,2]
[353086516,1739547046191,-42.828615,0.0001378,2]
[353086518,1739547046203,-457.171385,0.0001378,2]
[353086520,1739547046213,-500.0,0.00013863,2]
[353086522,1739547046222,-151.50333442,0.00014027,2]
[353086524,1739547046234,-1897.12,0.00014027,2]
[353086526,1739547046244,-881.89666558,0.00014027,2]
[353086528,1739547046255,-1031.76333442,0.00014027,2]
[353086530,1739547046265,-1227.12,0.00014027,2]
[353086532,1739547046274,-1733.52,0.00014027,2]
[353086534,1739547046284,-500.0,0.00014027,2]
[353086536,1739547046293,-500.0,0.00014027,2]
[353086538,1739547046303,-500.0,0.00014027,2]
[353086540,1739547046312,-500.0,0.00014027,2]
[353086543,1739547046322,-610.48,0.00014027,2]
[353086545,1739547046334,-500.0,0.00014027,2]
[353086547,1739547046344,-500.0,0.00014027,2]
[353086549,1739547046354,-571.85,0.00014027,2]
[353086551,1739547046363,-500.0,0.00014027,2]
[353086553,1739547046372,-934.80070667,0.00014027,2]
[353086555,1739547046384,-499.34929333,0.00014027,2]
[353086557,1739547046393,-500.0,0.00014027,2]
[353086559,1739547046403,-689.22,0.00014027,2]
[353086561,1739547046412,-466.3651598,0.00014027,2]
[353086563,1739547046424,-2940.9848402,0.00014027,2]
[353086565,1739547046433,-148.42219771,0.00014027,2]
[353087805,1739547822201,300.0,0.00018,30]
[353087806,1739548015272,10000.0,0.00018,30]
[353087807,1739548197808,10000.0,0.00018,30]
[353087831,1739548232325,-158.940585,0.00010685,2]
[353087832,1739548232347,-7438.69753278,0.00012844,2]
[353087833,1739548232361,-900.0,0.00013068,2]
[353087834,1739548232371,-474.56204007,0.00013598,2]
[353087835,1739548232381,-300.0,0.00013599,2]
[353087836,1739548232391,-3000.0,0.000136,2]
[353087837,1739548232400,-500.0,0.00013697,2]
[353087838,1739548232410,-500.0,0.00013697,2]
[353087839,1739548232420,-500.0,0.00013697,2]
[353087840,1739548232430,-200.49891283,0.00013697,2]
[353087841,1739548232440,-500.0,0.00013697,2]
[353087842,1739548232450,-295.43344489,0.00013697,2]
[353087843,1739548232459,-500.0,0.00013697,2]
[353087844,1739548232469,-500.0,0.00013697,2]
[353087845,1739548232479,-500.0,0.00013697,2]
[353087846,1739548232488,-500.0,0.00013697,2]
[353087847,1739548232499,-500.0,0.00013697,2]
[353087848,1739548232509,-500.0,0.00013697,2]
[353087849,1739548232520,-500.0,0.00013697,2]
[353087850,1739548232530,-500.0,0.00013697,2]
[353087851,1739548232540,-500.0,0.00013697,2]
[353087852,1739548232550,-472.50415314,0.00013697,2]
[353087853,1739548232560,-500.0,0.00013698,2]
[353087854,1739548232569,-500.0,0.00013698,2]
[353087855,1739548232579,-500.0,0.00013698,2]
[353087856,1739548232589,-500.0,0.00013698,2]
[353087857,1739548232598,-500.0,0.00013698,2]
[353087858,1739548232608,-500.0,0.00013698,2]
[353087859,1739548232618,-500.0,0.00013698,2]
[353087861,1739548232628,-500.0,0.00013698,2]
[353087862,1739548232637,-500.0,0.00013698,2]
[353087863,1739548232649,-500.0,0.00013698,2]
[353087864,1739548232659,-500.0,0.00013698,2]
[353087865,1739548232670,-500.0,0.00013698,2]
[353087866,1739548232680,-500.0,0.00013698,2]
[353087867,1739548232690,-500.0,0.00013698,2]
[353087868,1739548232700,-267.17055502,0.00013698,2]
[353087869,1739548232710,-500.0,0.00013698,2]
[353087870,1739548232720,-500.0,0.00013698,2]
[353087871,1739548232730,-500.0,0.00013698,2]
[353087872,1739548232740,-500.0,0.00013698,2]
[353087873,1739548232751,-500.0,0.00013698,2]
[353087874,1739548232762,-500.0,0.00013698,2]
[353087875,1739548232773,-500.0,0.00013698,2]
[353087876,1739548232783,-500.0,0.00013698,2]
[353087877,1739548232796,-333.73388459,0.00013698,2]
[353087878,1739548232806,-500.0,0.00013698,2]
[353087879,1739548232816,-500.0,0.00013698,2]
[353087880,1739548232826,-500.0,0.00013698,2]
[353087881,1739548232836,-500.0,0.00013698,2]
[353087882,1739548232846,-500.0,0.00013698,2]
[353087883,1739548232856,-500.0,0.00013698,2]
[353087884,1739548232866,-584.16711782,0.00013698,2]
[353087885,1739548232876,-705.46,0.00013698,2]
[353087886,1739548232886,-500.0,0.00013698,2]
[353087887,1739548232895,-500.0,0.00013698,2]
[353087888,1739548232905,-500.0,0.00013698,2]
[353087889,1739548232915,-500.0,0.00013698,2]
[353087890,1739548232925,-500.0,0.00013698,2]
[353087891,1739548232934,-500.0,0.00013698,2]
[353087892,1739548232944,-500.0,0.00013698,2]
[353087893,1739548232954,-500.0,0.00013698,2]
[353087894,1739548232963,-500.0,0.00013698,2]
[353087895,1739548232972,-500.0,0.00013698,2]
[353087896,1739548232981,-500.0,0.00013698,2]
[353087897,1739548232990,-885.72,0.00013698,2]
[353087898,1739548233000,-500.0,0.00013698,2]
[353087899,1739548233010,-500.0,0.00013698,2]
[353087900,1739548233021,-500.0,0.00013698,2]
[353087901,1739548233030,-1423.12,0.00013698,2]
[353087902,1739548233042,-500.0,0.00013698,2]
[353087903,1739548233052,-500.0,0.00013698,2]
[353087904,1739548233062,-500.0,0.00013698,2]
[353087905,1739548233071,-604.21647467,0.00013698,2]
[353087906,1739548233081,-500.0,0.00013698,2]
[353087907,1739548233091,-602.52,0.00013698,2]
[353087908,1739548233100,-433.8890098,0.00013698,2]
[353087909,1739548233110,-1592.63,0.00013698,2]
[353087910,1739548233119,-436.41331482,0.00013698,2]
[353087911,1739548233129,-513.8,0.00013698,2]
[353087912,1739548233139,-500.0,0.00013698,2]
[353087913,1739548233148,-708.68,0.00013698,2]
[353087914,1739548233158,-500.0,0.00013698,2]
[353087915,1739548233168,-500.0,0.00013698,2]
[353087916,1739548233178,-500.0,0.00013698,2]
[353087917,1739548233188,-500.0,0.00013698,2]
[353087918,1739548233198,-500.0,0.00013698,2]
[353087919,1739548233208,-500.0,0.00013698,2]
[353087920,1739548233218,-500.0,0.00013698,2]
[353087921,1739548233228,-500.0,0.00013698,2]
[353087922,1739548233242,-1231.32,0.00013698,2]
[353087923,1739548233253,-500.0,0.00013698,2]
[353087924,1739548233263,-500.7474185,0.00013698,2]
[353087925,1739548233273,-500.0,0.00013698,2]
[353087926,1739548233286,-500.0,0.00013698,2]
[353087927,1739548233296,-500.0,0.00013698,2]
[353087928,1739548233306,-500.0,0.00013698,2]
[353087929,1739548233317,-500.0,0.00013698,2]
[353087930,1739548233326,-500.0,0.00013698,2]
[353087931,1739548233336,-500.0,0.00013698,2]
[353087932,1739548233347,-455.59426665,0.00013698,2]
[353087933,1739548233356,-500.0,0.00013698,2]
[353087934,1739548233366,-1560.1,0.00013698,2]
[353087935,1739548233376,-500.0,0.00013698,2]
[353087936,1739548233386,-274.07904968,0.00013698,2]
[353087937,1739548233397,-500.0,0.00013698,2]
[353087938,1739548233407,-500.0,0.00013698,2]
[353087939,1739548233416,-573.61,0.00013698,2]
[353087940,1739548233427,-500.0,0.00013698,2]
[353087941,1739548233438,-197.66456261,0.00013698,2]
[353087942,1739548233448,-500.0,0.00013698,2]
[353087943,1739548233459,-500.0,0.00013698,2]
[353087944,1739548233469,-585.53,0.00013698,2]
[353087945,1739548233479,-500.0,0.00013698,2]
[353087946,1739548233490,-531.27983975,0.00013698,2]
[353087947,1739548233500,-500.0,0.00013698,2]
[353087948,1739548233510,-500.0,0.00013698,2]
[353087949,1739548233521,-500.0,0.00013698,2]
[353087950,1739548233531,-241.24967432,0.00013698,2]
[353087951,1739548233543,-500.0,0.00013698,2]
[353087952,1739548233554,-500.0,0.00013698,2]
[353087953,1739548233564,-1188.85,0.00013698,2]
[353087954,1739548233575,-500.0,0.00013698,2]
[353087955,1739548233585,-504.72752434,0.00013698,2]
[353087956,1739548233595,-500.0,0.00013698,2]
[353087957,1739548233605,-500.0,0.00013698,2]
[353087958,1739548233616,-500.0,0.00013698,2]
[353087959,1739548233625,-500.0,0.00013698,2]
[353087960,1739548233636,-500.0,0.00013698,2]
[353087961,1739548233647,-1296.2,0.00013698,2]
[353087962,1739548233657,-1328.3,0.00013698,2]
[353087963,1739548233667,-500.0,0.00013698,2]
[353087964,1739548233677,-657.1,0.00013698,2]
[353087965,1739548233687,-500.0,0.00013698,2]
[353087966,1739548233697,-500.0,0.00013698,2]
[353087967,1739548233707,-500.0,0.00013698,2]
[353087968,1739548233717,-406.85361087,0.00013698,2]
[353087969,1739548233726,-573.7,0.00013698,2]
[353087970,1739548233736,-586.46444235,0.00013698,2]
[353087971,1739548233746,-383.28023989,0.00013698,2]
[353087972,1739548233756,-500.0,0.00013698,2]